fUST/lending_fUST_20240404
["ID","MTS","AMOUNT","RATE_DAILY","PERIOD"]
[321410958,1712160638047,-407.56553421,0.00035761,4]
[321410959,1712160638057,-400.0,0.00035762,2]
[321410960,1712160638068,-400.0,0.00035762,2]
[321410961,1712160638077,-5051.48882101,0.00035763,4]
[321410963,1712160638089,-2715.35610586,0.00035763,4]
[321410964,1712160638101,-2352.06397576,0.00035763,4]
[321410965,1712160638113,-5141.02222485,0.00035763,4]
[321410966,1712160638121,-10.01624012,0.00035768,2]
[321411099,1712160640169,-498.16499995,0.00035768,2]
[321411148,1712160643155,-1678.75807622,0.00035768,2]
[321411149,1712160643170,-2313.84,0.00035768,2]
[321411150,1712160643183,-2516.304,0.00035768,2]
[321411151,1712160643200,-295.42873593,0.00035768,2]
[321411152,1712160643212,-890.12367028,0.00036879,2]
[321411153,1712160643225,-633.50618351,0.00038723,2]
[321411154,1712160643235,-573.79894028,0.00039,4]
[321411155,1712160643246,-353.06201083,0.00039,4]
[321411156,1712160643257,-169.713674,0.0004,2]
[321411157,1712160643268,-10725.441318,0.00041026,2]
[321411158,1712160643279,-166.666666,0.00041096,2]
[321411159,1712160643290,-163.935552,0.00041117,120]
[321411160,1712160643300,-166.666666,0.00042058,2]
[321411161,1712160643310,-166.666666,0.00043019,2]
[321411162,1712160643322,-2251.48420003,0.00043656,2]
[321411163,1712160643333,-1729.61484199,0.00043656,2]
[321411164,1712160643345,-166.666666,0.00043981,2]
[321411165,1712160643356,-166.666666,0.00044942,2]
[321411166,1712160643366,-239.73861548,0.00045,4]
[321411167,1712160643377,-8681.65996173,0.00045,120]
[321411168,1712160643387,-166.666666,0.00045904,2]
[321411169,1712160643397,-360.78,0.00047,4]
[321411170,1712160643409,-324.0,0.00047,120]
[321411171,1712160643419,-1612.0,0.00047,30]
[321411172,1712160643429,-198.17065663,0.00047689,7]
[321411173,1712160643440,-14219.23645752,0.0004769,120]
[321411174,1712160643452,-3719.97470322,0.0004769,120]
[321411250,1712161116112,7880.20020056,0.0004366,30]
[321411324,1712161832265,-155.02015262,0.00035736,4]
[321411326,1712161832275,-407.56553421,0.00035737,4]
[321411328,1712161832284,-926.86095111,0.00039,4]
[321411330,1712161832292,-166.666666,0.00041433,2]
[321411332,1712161832300,-163.935552,0.00041576,120]
[321411334,1712161832308,-17439.92128855,0.00041819,4]
[321411336,1712161832317,-3499.454663,0.0004182,2]
[321411337,1712161832325,-166.666666,0.00042563,2]
[321411338,1712161832334,-3580.3616287,0.00042774,2]
[321411340,1712161832343,-3935.2795,0.00043,60]
[321411343,1712161832352,-170.94216359,0.00043556,2]
[321411345,1712161832361,-1500.0,0.000436,30]
[321411346,1712161832370,-151.0,0.000436,2]
[321411348,1712161832380,-6506.68878252,0.000436,7]
[321411351,1712161832389,-1500.0,0.00043656,30]
[321411353,1712161832398,-1126.13,0.00043656,30]
[321411355,1712161832408,-496.50346298,0.0004366,120]
[321411357,1712161832417,-166.666666,0.00043692,2]
[321411359,1712161832427,-1086.56302336,0.0004444,4]
[321411361,1712161832436,-170.94216359,0.00044565,2]
[321411363,1712161832446,-166.666666,0.00044822,2]
[321411365,1712161832455,-3568.29048888,0.00045306,2]
[321411367,1712161832464,-170.94216359,0.00045573,2]
[321411369,1712161832473,-166.666666,0.00045951,2]
[321411371,1712161832482,-1500.0,0.00046,2]
[321411373,1712161832491,-1500.0,0.00047,2]
[321411375,1712161832500,-166.666666,0.00047081,2]
[321411377,1712161832509,-1500.0,0.000476,2]
[321411379,1712161832519,-1500.0,0.000476,2]
[321411381,1712161832527,-219.48364329,0.00047688,4]
[321411382,1712161832536,-369.13671707,0.00047688,4]
[321411383,1712161832545,-256.33278647,0.00047688,4]
[321411384,1712161832554,-2281.77787954,0.00047688,4]
[321411385,1712161832562,-2405.21610093,0.00047688,4]
[321411460,1712161838255,-170.94216359,0.00046582,2]
[321411461,1712161838264,-170.94216359,0.0004759,2]
[321411462,1712161838274,-950.53940966,0.00047688,4]
[321411464,1712161838320,-3499.45466298,0.00047688,4]
[321411465,1712161838332,-925.75,0.00047688,4]
[321411512,1712161840303,-174.91860618,0.00047688,4]
[321411513,1712161840313,-8182.18191545,0.00047688,120]
[321411514,1712161840323,-2656.44277302,0.00047689,4]
[321411515,1712161840333,-186.77073307,0.00047689,4]
[321411516,1712161840342,-200.03003501,0.00047689,4]
[321411517,1712161840352,-200.88152778,0.00047689,4]
[321411518,1712161840362,-255.45137173,0.00047689,4]
[321411519,1712161840372,-2628.91031738,0.00047689,4]
[321411520,1712161840384,-464.78866184,0.00047689,4]
[321411521,1712161840395,-367.733038,0.00047689,4]
[321411522,1712161840407,-1090.35511393,0.00047689,4]
[321411523,1712161840420,-775.2380535,0.00047689,4]
[321411524,1712161840430,-433.80651329,0.00047689,4]
[321411525,1712161840440,-206.90646323,0.00047689,4]
[321411526,1712161840450,-10586.87699285,0.0004769,3]
[321411527,1712161840460,-31294.7449355,0.0004769,120]
[321411562,1712162666262,-163.935552,0.00045073,120]
[321411563,1712162666285,-435.894448,0.00047687,120]
[321411566,1712162748761,-613.68,0.00047687,120]
[321411624,1712163038507,-407.56553421,0.00039999,4]
[321411626,1712163038517,-161.052631,0.0004,2]
[321411628,1712163038526,-161.052642,0.0004,2]
[321411630,1712163038535,-169.713674,0.0004,2]
[321411632,1712163038543,-166.666666,0.00044362,2]
[321411634,1712163038552,-1519.78485279,0.0004456,2]
[321411636,1712163038563,-1412.50361086,0.0004456,2]
[321411638,1712163038573,-163.935552,0.00045071,120]
[321411640,1712163038582,-1703.9331349,0.00045073,2]
[321411642,1712163038591,-166.666666,0.00045572,2]
[321411644,1712163038600,-161.052631,0.00046062,2]
[321411646,1712163038609,-166.666666,0.00046781,2]
[321411648,1712163038618,-324.24117763,0.00047687,120]
[321411664,1712163040446,-6204.26242258,0.00047687,120]
[321411666,1712163040455,-397.20277038,0.00047687,120]
[321411667,1712163040465,-26610.02975204,0.00047688,2]
[321411668,1712163040556,-4254.6732496,0.00047688,2]
[321411669,1712163040567,-578.99857172,0.00047688,2]
[321411678,1712163043602,-596.08832976,0.00047688,2]
[321411740,1712164232881,-465.78918196,0.00040128,4]
[321411741,1712164232891,-938.55943775,0.00040128,4]
[321411742,1712164232903,-760.59177154,0.00040128,4]
[321411751,1712164238582,-4413.08905442,0.00040128,4]
[321411752,1712164238642,-2617.77876522,0.00040128,4]
[321411863,1712164243978,-1184.98097107,0.00040128,4]
[321411864,1712164243987,-7583.80464585,0.00040129,4]
[321411865,1712164243999,-1061.58942368,0.00040129,4]
[321411866,1712164244008,-24990.06352395,0.0004013,2]
[321412329,1712165432836,-155.00620025,0.0003769,2]
[321412331,1712165432845,-1276.1837461,0.00037692,2]
[321412334,1712165432855,-373.77623815,0.00037772,2]
[321412337,1712165432864,-45.0338155,0.00037873,2]
[321412340,1712165432875,-122.0907885,0.00037873,2]
[321412342,1712165432884,-329.15327433,0.0003803,2]
[321412344,1712165432893,-373.77623799,0.00038289,2]
[321412346,1712165432901,-202.37819624,0.00038641,4]
[321412348,1712165432913,-528.8362888,0.00038641,4]
[321412350,1712165432922,-373.77623799,0.00038805,2]
[321412352,1712165432933,-400.0,0.00038834,3]
[321412354,1712165432942,-400.0,0.00038834,5]
[321412356,1712165432951,-645.37364718,0.00038835,4]
[321412358,1712165432960,-200.0,0.00038835,4]
[321412360,1712165432970,-203.3795265,0.00038835,4]
[321412362,1712165432979,-156.26533378,0.00038835,4]
[321412364,1712165432988,-155.99996299,0.00038835,4]
[321412366,1712165432997,-158.23529131,0.00038835,4]
[321412368,1712165433005,-206.50272965,0.00038835,4]
[321412370,1712165433015,-155.32777824,0.00038835,4]
[321412372,1712165433023,-159.28569033,0.00038835,4]
[321412374,1712165433033,-155.18037566,0.00038835,4]
[321412376,1712165433042,-271.05846487,0.00038835,4]
[321412378,1712165433051,-1204.62635282,0.00038836,4]
[321412380,1712165433060,-24890.0,0.00038837,2]
[321412382,1712165433070,-185.8183679,0.00038977,2]
[321412384,1712165433079,-926.86095111,0.00039,4]
[321412386,1712165433087,-319.06747655,0.00039,30]
[321412388,1712165433096,-373.77623799,0.00039322,2]
[321412390,1712165433105,-300.0,0.000396,20]
[321412392,1712165433114,-373.77623799,0.00039839,2]
[321412394,1712165433123,-166.766966,0.0004,2]
[321412396,1712165433132,-371.80234678,0.0004,4]
[321412668,1712165438804,-407.56553421,0.00037689,4]
[321412669,1712165438814,-4969.73630235,0.0004,4]
[321412670,1712165438823,-161.052631,0.0004,2]
[321412671,1712165438832,-167.40447794,0.0004,4]
[321412672,1712165438842,-200.70259025,0.0004,2]
[321412673,1712165438851,-382.58263311,0.00040128,2]
[321412674,1712165438861,-264.66997218,0.00040128,7]
[321412676,1712165438870,-20590.28876161,0.0004013,2]
[321412677,1712165438881,-1587.9,0.0004013,2]
[321412720,1712165443991,-476.84426105,0.0004013,2]
[321412748,1712166461335,162.87,0.00043713,120]
[321412813,1712166631997,-155.00155002,0.00039499,2]
[321412814,1712166632007,-280.33217854,0.000395,2]
[321412815,1712166632016,-300.0,0.000396,20]
[321412816,1712166632025,-303.0,0.00039726,60]
[321412817,1712166632035,-301.0,0.00039726,60]
[321412818,1712166632044,-300.0,0.00039726,60]
[321412819,1712166632054,-210.66627144,0.00039926,2]
[321412855,1712166637976,-69.66590705,0.00039926,2]
[321412856,1712166637986,-181.208423,0.0004,2]
[321412857,1712166637996,-169.713674,0.0004,2]
[321412858,1712166638006,-403.73257826,0.00040129,4]
[321412859,1712166638017,-4451.28220761,0.00040129,4]
[321412860,1712166638027,-125.25940932,0.0004013,2]
[321412861,1712166638038,-157.00065209,0.0004013,68]
[321412862,1712166638048,-448.06223413,0.0004013,2]
[321412863,1712166638058,-280.33217849,0.00040352,2]
[321412864,1712166638068,-280.33217849,0.00040777,2]
[321412865,1712166638086,-170.710275,0.00040973,2]
[321412866,1712166638095,-166.666666,0.00041096,2]
[321412867,1712166638104,-300.0,0.000411,21]
[321412868,1712166638116,-280.33217849,0.00041203,2]
[321412869,1712166638126,-1276.1837461,0.00041258,2]
[321412870,1712166638136,-425.526517,0.00041268,120]
[321412871,1712166638146,-177.3236123,0.00041306,2]
[321412872,1712166638158,-452.73257476,0.00041613,2]
[321412873,1712166638168,-280.33217849,0.00041629,2]
[321412874,1712166638177,-280.33217849,0.00042055,2]
[321412875,1712166638187,-166.666666,0.00042119,2]
[321412876,1712166638196,-280.33217849,0.00042481,2]
[321412877,1712166638206,-311.248409,0.000426,22]
[321412878,1712166638216,-280.33217849,0.00042906,2]
[321412879,1712166638227,-433.43697179,0.00042988,15]
[321412880,1712166638238,-1000.0,0.00043,2]
[321412881,1712166638248,-166.666666,0.00043142,2]
[321412882,1712166638257,-280.33217849,0.00043332,2]
[321412883,1712166638267,-496.50346298,0.00043713,120]
[321412884,1712166638279,-1217.52125036,0.00043713,2]
[321412885,1712166638289,-999.999999,0.00043713,2]
[321412886,1712166638299,-280.33217849,0.00043758,2]
[321412887,1712166638309,-166.666666,0.00044164,2]
[321412888,1712166638319,-280.33217849,0.00044184,2]
[321412889,1712166638329,-200.0,0.00044447,120]
[321412890,1712166638339,-280.33217849,0.00044609,2]
[321412891,1712166638350,-1006.07823356,0.00045,120]
[321412892,1712166638361,-280.33217849,0.00045035,2]
[321412893,1712166638373,-166.666666,0.00045187,2]
[321412894,1712166638383,-2108.2282491,0.00045201,12]
[321412895,1712166638393,-500.0,0.00045301,120]
[321412896,1712166638403,-500.0,0.00045301,7]
[321412897,1712166638413,-500.0,0.00045301,120]
[321412898,1712166638422,-500.0,0.00045301,7]
[321412899,1712166638433,-500.0,0.00045301,120]
[321412900,1712166638443,-500.0,0.00045301,7]
[321412901,1712166638454,-500.0,0.00045301,120]
[321412902,1712166638465,-500.0,0.00045301,7]
[321412903,1712166638475,-500.0,0.00045301,120]
[321412904,1712166638486,-500.0,0.00045301,7]
[321412905,1712166638496,-500.0,0.00045301,7]
[321412906,1712166638505,-500.0,0.00045301,120]
[321412907,1712166638516,-500.0,0.00045301,120]
[321412908,1712166638526,-500.0,0.00045301,7]
[321412909,1712166638535,-359.42636364,0.00045301,7]
[321412910,1712166638544,-500.0,0.00045301,120]
[321412911,1712166638555,-500.0,0.00045301,7]
[321412912,1712166638565,-500.0,0.00045301,120]
[321412913,1712166638576,-568.9594744,0.00045301,120]
[321412914,1712166638585,-500.0,0.00045301,120]
[321412915,1712166638594,-500.0,0.00045301,7]
[321412916,1712166638605,-500.0,0.00045301,7]
[321412917,1712166638616,-500.0,0.00045301,120]
[321412918,1712166638625,-500.0,0.00045301,7]
[321412919,1712166638636,-500.0,0.00045301,120]
[321412920,1712166638645,-500.0,0.00045301,120]
[321412921,1712166638656,-530.372698,0.00045301,7]
[321412922,1712166638665,-530.372698,0.00045301,7]
[321412923,1712166638675,-151.0,0.00045301,7]
[321412924,1712166638685,-357.90112473,0.00045302,4]
[321412925,1712166638696,-389.30265262,0.00045302,4]
[321412926,1712166638706,-260.95760401,0.00045302,4]
[321412927,1712166638717,-298.7134847,0.00045302,4]
[321412928,1712166638727,-828.33104674,0.00045302,4]
[321412929,1712166638737,-170.48545562,0.00045302,4]
[321412930,1712166638747,-171.72340381,0.00045302,4]
[321412931,1712166638757,-477.65562487,0.00045302,4]
[321412932,1712166638768,-156.32317295,0.00045302,4]
[321412933,1712166638777,-354.30872915,0.00045302,7]
[321412934,1712166638787,-289.58348526,0.00045302,4]
[321412935,1712166638798,-312.0954563,0.00045302,4]
[321412936,1712166638807,-249.43221495,0.00045302,4]
[321412937,1712166638818,-520.18596634,0.00045302,2]
[321412938,1712166638827,-802.66865404,0.00045302,4]
[321412939,1712166638837,-236.85437915,0.00045302,30]
[321412940,1712166638846,-223.55015,0.00045302,7]
[321412941,1712166638855,-223.55015,0.00045302,7]
[321412942,1712166638866,-328.097806,0.00045302,7]
[321412943,1712166638876,-328.097806,0.00045302,7]
[321412944,1712166638885,-151.0,0.00045302,7]
[321412945,1712166638894,-151.0,0.00045302,7]
[321412946,1712166638906,-151.0,0.00045302,7]
[321412947,1712166638916,-9404.27974616,0.00045304,2]
[321412948,1712166638926,-223.55015,0.00045304,7]
[321412949,1712166638935,-223.55015,0.00045304,7]
[321412950,1712166638944,-530.372698,0.00045304,7]
[321412951,1712166638953,-530.372698,0.00045304,7]
[321412952,1712166638963,-151.0,0.00045304,7]
[321412953,1712166638972,-328.097806,0.00045304,7]
[321412954,1712166638982,-328.097806,0.00045304,7]
[321412955,1712166638992,-151.0,0.00045304,7]
[321412956,1712166639002,-151.0,0.00045304,7]
[321412957,1712166639012,-151.0,0.00045304,7]
[321412958,1712166639021,-280.33217849,0.00045461,2]
[321412959,1712166639032,-152.76127004,0.00045697,30]
[321412960,1712166639041,-200.0,0.00045751,120]
[321412961,1712166639051,-150.13803642,0.00045759,30]
[321412962,1712166639061,-150.13803642,0.00045793,30]
[321412963,1712166639070,-156.71110919,0.000458,30]
[321412964,1712166639082,-280.33217849,0.00045887,2]
[321412965,1712166639095,-158.76222105,0.00045984,30]
[321412966,1712166639104,-150.13803642,0.00045992,30]
[321412967,1712166639114,-158.76222105,0.00046165,30]
[321412968,1712166639125,-166.666666,0.0004621,2]
[321412969,1712166639138,-150.13803642,0.00046246,30]
[321412970,1712166639149,-158.76222105,0.00046288,30]
[321412971,1712166639158,-152.76127004,0.00046292,30]
[321412972,1712166639171,-150.13803642,0.0004631,30]
[321412973,1712166639182,-152.76127004,0.00046311,30]
[321412974,1712166639193,-280.33217849,0.00046313,2]
[321412975,1712166639203,-500.0,0.00046345,2]
[321412976,1712166639307,-150.13803642,0.00046347,30]
[321412977,1712166639317,-151.0,0.00046349,5]
[321412978,1712166639326,-150.13803642,0.00046372,30]
[321412979,1712166639335,-500.0,0.000464,2]
[321412980,1712166639344,-150.13803642,0.00046417,30]
[321412981,1712166639353,-500.0,0.00046455,2]
[321412982,1712166639362,-500.0,0.0004651,2]
[321412983,1712166639374,-152.76127004,0.00046528,30]
[321412984,1712166639384,-500.0,0.00046564,2]
[321412985,1712166639395,-151.0,0.00046566,7]
[321412986,1712166639404,-151.0,0.00046566,7]
[321412987,1712166639414,-150.13803642,0.00046568,30]
[321412988,1712166639423,-452.73257476,0.00046613,2]
[321412989,1712166639432,-389.89010704,0.00046619,2]
[321412990,1712166639442,-328.097806,0.00046676,7]
[321412991,1712166639451,-328.097806,0.00046676,7]
[321412992,1712166639461,-151.0,0.00046676,7]
[321412993,1712166639471,-280.33217849,0.00046738,2]
[321412994,1712166639481,-151.0,0.00046755,7]
[321412995,1712166639491,-153.0,0.00046877,2]
[321412996,1712166639501,-153.0,0.00046877,2]
[321412997,1712166639511,-153.0,0.00046877,2]
[321412998,1712166639520,-153.0,0.00046877,2]
[321412999,1712166639529,-153.0,0.00046877,2]
[321413000,1712166639539,-720.6511446,0.0004688,120]
[321413001,1712166639549,-161.052631,0.00046928,2]
[321413002,1712166639560,-168.33333332,0.00046933,30]
[321413003,1712166639571,-150.13803642,0.00046951,30]
[321413004,1712166639580,-530.372698,0.00046987,7]
[321413005,1712166639590,-530.372698,0.00046987,7]
[321413006,1712166639600,-571.99140759,0.00046998,120]
[321413007,1712166639610,-432.11883681,0.00046998,120]
[321413009,1712166639620,-359.7906435,0.00046998,120]
[321413010,1712166639628,-500.0,0.00046998,120]
[321413011,1712166639637,-500.0,0.00046998,120]
[321413012,1712166639647,-500.0,0.00046998,120]
[321413013,1712166639657,-500.0,0.00046998,120]
[321413014,1712166639666,-382.11292277,0.00046998,120]
[321413015,1712166639675,-500.0,0.00046998,120]
[321413016,1712166639684,-500.0,0.00046998,120]
[321413017,1712166639693,-328.097806,0.00046999,7]
[321413018,1712166639702,-328.097806,0.00046999,7]
[321413019,1712166639711,-151.0,0.00046999,7]
[321413020,1712166639720,-151.0,0.00046999,7]
[321413021,1712166639730,-151.0,0.00046999,7]
[321413022,1712166639740,-757.76266822,0.00047,2]
[321413023,1712166639753,-242.23733178,0.00047,2]
[321413024,1712166639762,-153.16266822,0.00047,12]
[321413155,1712166643133,-1846.83733178,0.00047,12]
[321413156,1712166643142,-1562.97356841,0.00047,12]
[321413181,1712166646013,-194.83718726,0.00046999,2]
[321413182,1712166646022,-183.62534602,0.00047,12]
[321413260,1712167832251,-1865.56943919,0.000399,9]
[321413261,1712167832261,-194.81353171,0.000399,2]
[321413262,1712167832270,-23830.42230115,0.0004,2]
[321413263,1712167832279,-166.766966,0.0004,2]
[321413264,1712167832289,-4451.28220761,0.00040129,4]
[321413265,1712167832298,-6066.60691451,0.0004013,2]
[321413266,1712167832307,-319.144887,0.00041031,120]
[321413267,1712167832317,-166.666666,0.00041096,2]
[321413268,1712167832327,-651.04737374,0.00041521,7]
[321413269,1712167832338,-500.0,0.00041521,31]
[321413270,1712167832348,-285.4399416,0.00041521,31]
[321413271,1712167832357,-12397.7573744,0.00041522,2]
[321413272,1712167832367,-166.666666,0.00042058,2]
[321413273,1712167832377,-166.666666,0.00043019,2]
[321413274,1712167832386,-10099.4286685,0.00043669,15]
[321413275,1712167832395,-185.19378721,0.0004373,31]
[321413276,1712167832405,-245.13917468,0.0004373,31]
[321413277,1712167832414,-514.63387683,0.0004373,31]
[321413278,1712167832423,-85.1317813,0.0004373,31]
[321413286,1712167838182,-150.91085826,0.00041569,2]
[321413287,1712167838191,-166.00147741,0.00042588,2]
[321413288,1712167838201,-414.8682187,0.0004373,31]
[321413289,1712167838212,-848.79944563,0.00043731,2]
[321413290,1712167838224,-6258.6907829,0.00043731,2]
[321413291,1712167838237,-3043.06674947,0.00043731,2]
[321413322,1712167843076,-7847.09692172,0.00043731,2]
[321413324,1712167843087,-687.56794404,0.00043731,2]
[321413326,1712167843100,-264.42728768,0.00043731,2]
[321413328,1712167843109,-264.86657902,0.00043731,2]
[321413331,1712167843138,-357.56898103,0.00043731,2]
[321413333,1712167843147,-573.13672784,0.00043731,2]
[321413336,1712167843157,-298.535327,0.00043731,7]
[321413337,1712167843166,-178.84012,0.00043731,7]
[321413338,1712167843175,-178.84012,0.00043731,7]
[321413339,1712167843184,-371.260889,0.00043731,7]
[321413340,1712167843193,-371.260889,0.00043731,7]
[321413341,1712167843201,-151.0,0.00043731,7]
[321413342,1712167843210,-151.0,0.00043731,7]
[321413343,1712167843219,-151.0,0.00043731,7]
[321413344,1712167843228,-196.858684,0.00043731,7]
[321413345,1712167843237,-196.858684,0.00043731,7]
[321413346,1712167843246,-194.81353171,0.00043744,2]
[321413347,1712167843256,-166.666666,0.00043981,2]
[321413348,1712167843265,-581.04,0.0004456,2]
[321413349,1712167843275,-166.666666,0.00044942,2]
[321413350,1712167843285,-152.76127004,0.00045762,30]
[321413351,1712167843294,-166.666666,0.00045904,2]
[321413352,1712167843303,-152.76127004,0.00046194,30]
[321413353,1712167843313,-150.13803642,0.00046264,30]
[321413354,1712167843322,-150.22087483,0.00046339,30]
[321413355,1712167843331,-150.13803642,0.00046418,30]
[321413356,1712167843342,-150.13803642,0.00046449,30]
[321413357,1712167843351,-158.76222105,0.00046498,30]
[321413358,1712167843361,-158.76222105,0.00046532,30]
[321413359,1712167843370,-150.13803642,0.00046568,30]
[321413360,1712167843478,-150.91085826,0.00046569,2]
[321413361,1712167843488,-152.76127004,0.00046603,30]
[321413362,1712167843498,-168.33333334,0.00046765,30]
[321413363,1712167843508,-1000.0,0.00046999,120]
[321413364,1712167843517,-253.40108557,0.00047,12]
[321413365,1712167843527,-496.50346298,0.00047,120]
[321413366,1712167843536,-2000.0,0.00047,12]
[321413367,1712167843545,-165.0,0.00047,90]
[321413368,1712167843555,-178.84012,0.00047,7]
[321413369,1712167843564,-178.84012,0.00047,7]
[321413370,1712167843574,-371.260889,0.00047,7]
[321413371,1712167843583,-371.260889,0.00047,7]
[321413372,1712167843594,-151.0,0.00047,7]
[321413373,1712167843603,-151.0,0.00047,7]
[321413374,1712167843612,-151.0,0.00047,7]
[321413375,1712167843621,-196.858684,0.00047,7]
[321413376,1712167843631,-196.858684,0.00047,7]
[321413377,1712167843640,-152.76127004,0.00047088,30]
[321413378,1712167843649,-153.0,0.00047096,2]
[321413379,1712167843659,-222.20456984,0.00047158,30]
[321413380,1712167843669,-152.76127004,0.00047167,30]
[321413381,1712167843678,-158.76222105,0.00047215,30]
[321413382,1712167843688,-368.204256,0.0004737,2]
[321413383,1712167843697,-153.0,0.0004737,2]
[321413384,1712167843707,-306.0,0.0004737,2]
[321413385,1712167843716,-153.0,0.0004737,2]
[321413386,1712167843725,-153.0,0.0004737,2]
[321413387,1712167843735,-153.0,0.0004737,2]
[321413388,1712167843745,-153.0,0.0004737,2]
[321413389,1712167843754,-1418.0,0.00047498,50]
[321413390,1712167843764,-1000.0,0.000475,2]
[321413391,1712167843773,-194.81353171,0.00047588,2]
[321413392,1712167843784,-150.13803642,0.00047622,30]
[321413393,1712167843793,-590.14369983,0.00047686,2]
[321413394,1712167843802,-616.39264889,0.00047687,4]
[321413395,1712167843812,-502.09798909,0.00047688,2]
[321413411,1712167847334,-335.96855257,0.00047688,2]
[321413493,1712169032417,-1170.80873444,0.00039999,4]
[321413540,1712169038331,-788.1,0.00039999,4]
[321413542,1712169038398,-3097.38506439,0.00039999,4]
[321413543,1712169038407,-161.052631,0.0004,2]
[321413544,1712169038416,-181.208423,0.0004,2]
[321413545,1712169038425,-3561.02576608,0.0004,4]
[321413546,1712169038434,-152.76127004,0.00041931,30]
[321413547,1712169038443,-158.76222105,0.00042651,30]
[321413548,1712169038452,-166.666666,0.0004339,2]
[321413549,1712169038461,-150.13803642,0.00043724,30]
[321413551,1712169038471,-550.0,0.00043727,3]
[321413552,1712169038479,-550.0,0.00043727,5]
[321413553,1712169038489,-3709.0,0.00043728,30]
[321413555,1712169038498,-189.7243479,0.00043813,2]
[321413556,1712169038507,-239.358665,0.00043933,120]
[321413557,1712169038516,-150.13803642,0.00044009,30]
[321413558,1712169038525,-275.342036,0.00044265,2]
[321413560,1712169038535,-166.666666,0.00044573,2]
[321413561,1712169038543,-150.13803642,0.00044669,30]
[321413562,1712169038552,-150.13803642,0.00044946,30]
[321413563,1712169038562,-150.0,0.000454,2]
[321413564,1712169038575,-158.76222105,0.00045481,30]
[321413565,1712169038584,-166.666666,0.00045756,2]
[321413566,1712169038594,-152.76127004,0.00045952,30]
[321413567,1712169038603,-250.0,0.00046461,3]
[321413568,1712169038613,-250.0,0.00046461,5]
[321413569,1712169038622,-150.13803642,0.00046532,30]
[321413570,1712169038631,-152.76127004,0.00046606,30]
[321413571,1712169038640,-153.0,0.00046822,2]
[321413572,1712169038650,-166.666666,0.00046939,2]
[321413573,1712169038659,-165.0,0.00047,90]
[321413574,1712169038668,-153.0,0.0004737,2]
[321413575,1712169038677,-153.0,0.0004737,2]
[321413576,1712169038686,-153.0,0.0004737,2]
[321413577,1712169038696,-153.0,0.0004737,2]
[321413578,1712169038705,-153.0,0.0004737,2]
[321413579,1712169038713,-153.0,0.0004737,2]
[321413580,1712169038723,-153.0,0.0004737,2]
[321413581,1712169038732,-153.0,0.0004737,2]
[321413582,1712169038741,-153.0,0.0004737,2]
[321413583,1712169038751,-153.0,0.0004737,2]
[321413584,1712169038761,-153.0,0.0004737,2]
[321413585,1712169038770,-153.0,0.0004737,2]
[321413586,1712169038783,-153.0,0.0004737,2]
[321413587,1712169038792,-153.0,0.0004737,2]
[321413588,1712169038801,-215.9379195,0.0004737,2]
[321413589,1712169038810,-153.78054964,0.00047588,2]
[321413590,1712169038822,-1170.07505846,0.00047686,4]
[321413591,1712169038832,-434.84309007,0.00047687,120]
[321413592,1712169038842,-22663.35878435,0.00047688,2]
[321413608,1712169042748,-172.76139086,0.00045588,2]
[321413610,1712169042757,-3255.20879872,0.00047688,2]
[321413723,1712169043653,-28975.95282321,0.00047688,2]
[321413725,1712169043720,-328.27,0.00047688,2]
[321413886,1712170238599,-169.713674,0.0004,2]
[321413887,1712170238608,-300.0,0.00043738,30]
[321413888,1712170238617,-3561.02576608,0.00043738,4]
[321413889,1712170238627,-502.15945608,0.00043739,30]
[321413890,1712170238636,-166.666666,0.00045113,2]
[321413891,1712170238645,-636.9490118,0.00045617,2]
[321413892,1712170238654,-179.518998,0.00045661,120]